bitfinex/quotes_BTCUSD_20251217
["timestamp","ask_amount","ask_price","bid_price","bid_amount"]
[1765992254261,1.0,87108.0,87082.0,0.0907]
[1765992254465,0.47483,87106.0,87086.0,0.00161287]
[1765992254674,0.47483,87102.0,87086.0,0.00161287]
[1765992255115,0.72117,87103.0,87086.0,0.00161287]
[1765992256191,1.0,87102.0,87086.0,0.00161287]
[1765992256403,0.25951949,87109.0,87086.0,0.00161287]
[1765992256404,1.196,87104.0,87086.0,0.00161287]
[1765992256615,1.0,87109.0,87086.0,0.23078287]
[1765992256740,1.0,87109.0,87087.0,0.24294932]
[1765992256944,0.01832,87108.0,87087.0,0.23805287]
[1765992257649,1.0,87112.0,87094.0,0.22917]
[1765992257835,0.0907,87126.0,87098.0,0.22917]
[1765992257980,0.0907,87121.0,87098.0,0.24226418]
[1765992258180,1.0,87119.0,87098.0,0.23078287]
[1765992258384,1.0,87120.0,87105.0,0.01148039]
[1765992258607,0.01832,87125.0,87105.0,0.01148039]
[1765992258608,1.0,87124.0,87105.0,0.00161287]
[1765992259624,1.0,87124.0,87105.0,0.00261287]
[1765992259823,1.0,87124.0,87105.0,0.00161287]
[1765992260115,1.0,87124.0,87106.0,0.22917]
[1765992260436,0.0907,87124.0,87106.0,0.23078287]
[1765992260636,1.0,87127.0,87106.0,0.23078287]
[1765992261870,1.0,87127.0,87106.0,0.23178287]
[1765992262665,0.47483,87125.0,87106.0,0.00261287]
[1765992262854,1.0,87124.0,87107.0,0.00037791]
[1765992263066,1.0,87124.0,87107.0,0.00161287]
[1765992263891,0.72117,87120.0,87107.0,0.00161287]
[1765992264087,0.47483,87119.0,87107.0,0.00161287]
[1765992264291,0.72117,87120.0,87107.0,0.00161287]
[1765992265080,0.72117,87120.0,87107.0,0.00261287]
[1765992266285,1.196,87120.0,87107.0,0.00261287]
[1765992266552,1.0,87119.0,87107.0,0.00261287]
[1765992266736,0.47483,87119.0,87107.0,0.00261287]
[1765992266977,1.0,87118.0,87107.0,0.00261287]
[1765992267148,0.47483,87116.0,87107.0,0.00261287]
[1765992267572,0.47483,87116.0,87107.0,0.00161287]
[1765992267713,0.47483,87116.0,87107.0,0.00261287]
[1765992268051,1.47483,87122.0,87107.0,0.00161287]
[1765992268258,1.0,87119.0,87107.0,0.00161287]
[1765992268458,0.47483,87119.0,87111.0,0.00025193]
[1765992268663,1.0,87118.0,87111.0,0.00025193]
[1765992269065,1.0,87128.0,87111.0,0.00025193]
[1765992269223,1.0,87136.0,87112.0,0.22917]
[1765992269429,0.0907,87133.0,87114.0,0.22917]
[1765992269640,0.10902,87135.0,87117.0,0.00727]
[1765992269641,0.01832,87135.0,87117.0,0.00727]
[1765992269822,0.01832,87135.0,87118.0,0.22917]
[1765992270024,0.01832,87135.0,87118.0,0.23078287]
[1765992271051,0.01432157,87135.0,87118.0,0.00161287]
[1765992271251,0.01332157,87135.0,87118.0,0.00161287]
[1765992271494,0.47483,87134.0,87118.0,0.00161287]
[1765992271901,0.0907,87134.0,87118.0,0.00161287]
[1765992272283,0.47483,87142.0,87118.0,0.00161287]
[1765992272284,1.0,87144.0,87129.0,0.00727]
[1765992272519,0.0493946,87167.0,87140.0,0.22917]
[1765992272520,1.0,87159.0,87140.0,0.22917]
[1765992272820,0.47483,87162.0,87141.0,0.01377078]
[1765992272821,1.0,87161.0,87141.0,0.01377078]
[1765992273022,1.0,87161.0,87141.0,0.00161287]
[1765992273241,1.0,87161.0,87142.0,0.22917]
[1765992273438,1.0,87164.0,87144.0,0.22917]
[1765992273645,1.0,87164.0,87112.0,0.10272775]
[1765992273646,0.72117,87146.0,87116.0,0.08151923]
[1765992273820,0.72117,87139.0,87116.0,0.00161287]
[1765992274022,1.47483,87137.0,87116.0,0.00161287]
[1765992274231,1.0,87138.0,87116.0,0.00161287]
[1765992274550,1.0,87126.0,87116.0,0.00161287]
[1765992274904,0.70184172,87130.0,87116.0,0.00161287]
[1765992274905,1.0,87129.0,87116.0,0.00161287]
[1765992275105,0.72117,87125.0,87116.0,0.00161287]
[1765992275329,0.47483,87122.0,87116.0,0.00161287]
[1765992275528,0.48361314,87123.0,87116.0,0.00161287]
[1765992275529,1.0,87131.0,87116.0,0.00161287]
[1765992275728,0.47483,87128.0,87116.0,0.00161287]
[1765992275971,0.47483,87126.0,87116.0,0.00161287]
[1765992277328,0.002,87125.0,87116.0,0.00161287]
[1765992277527,0.47483,87126.0,87116.0,0.00161287]
[1765992277922,0.47583,87126.0,87116.0,0.00161287]
[1765992278107,1.0,87126.0,87116.0,0.00161287]
[1765992278319,1.0,87126.0,87111.0,0.00025193]
[1765992278320,0.72117,87123.0,87111.0,0.00025193]
[1765992278561,0.01832,87133.0,87111.0,0.00025193]
[1765992278562,0.47483,87120.0,87111.0,0.00025193]
[1765992278730,0.47483,87118.0,87111.0,1.93e-06]
[1765992279158,0.56553,87112.0,87111.0,1.93e-06]
[1765992279325,0.56553,87112.0,87082.0,0.4853]
[1765992279326,0.47483,87111.0,87082.0,0.4853]
[1765992279557,1.196,87107.0,87082.0,0.4853]
[1765992279749,1.0,87108.0,87082.0,0.4853]
[1765992279750,0.9982,87109.0,87082.0,0.4853]
[1765992279934,0.47483,87104.0,87082.0,0.4853]
[1765992280129,0.70184172,87110.0,87086.0,0.00888]
[1765992280130,0.9982,87109.0,87086.0,0.00888]
[1765992280331,0.0907,87109.0,87091.0,0.46698]
[1765992280557,0.0907,87109.0,87087.0,0.01148277]
[1765992280558,0.01832,87111.0,87094.0,0.00888]
[1765992281710,0.01832,87111.0,87093.0,0.46698]
[1765992281844,0.01993,87111.0,87093.0,0.46698]
[1765992282899,0.01993,87111.0,87094.0,0.48075821]
[1765992282900,0.00161,87111.0,87094.0,0.48075821]
[1765992283154,0.00161,87111.0,87094.0,0.47846184]
[1765992283385,0.00161,87111.0,87094.0,0.46698]
[1765992283552,0.00161,87111.0,87082.0,0.01832]
[1765992283553,0.69442,87108.0,87084.0,0.46698]
[1765992283756,0.47879,87105.0,87084.0,0.46698]
[1765992283991,0.69442,87106.0,87086.0,0.0114829]
[1765992284438,0.00161,87108.0,87087.0,0.01148277]
[1765992284619,1.0,87107.0,87090.0,0.69662637]
[1765992284823,1.0,87107.0,87091.0,0.01148224]
[1765992284824,0.00161,87107.0,87091.0,0.01148224]
[1765992285023,1.17321,87106.0,87103.0,0.00025196]
[1765992285225,0.69442,87106.0,87103.0,0.00025196]
[1765992286051,0.00161,87107.0,87103.0,0.00025196]
[1765992286976,1.0,87114.0,87103.0,0.00025196]
[1765992287189,0.53302,87114.0,87103.0,0.00025196]
[1765992287412,1.0,87118.0,87103.0,0.01173262]
[1765992287602,0.01832,87123.0,87104.0,0.02036052]
[1765992287960,0.01832,87123.0,87105.0,0.01377647]
[1765992288329,0.01832,87123.0,87103.0,0.00025196]
[1765992288557,0.0907,87126.0,87108.0,0.00888]
[1765992288759,1.0,87128.0,87110.0,0.01147973]
[1765992288960,0.70184172,87130.0,87110.0,0.01147973]
[1765992288961,1.0,87130.0,87113.0,0.00888]
[1765992289114,0.01832,87131.0,87113.0,0.00888]
[1765992289315,0.69442,87138.0,87113.0,0.00888]
[1765992289316,1.0,87134.0,87113.0,0.2384668]
[1765992289517,0.69442,87138.0,87114.0,0.00888]
[1765992289723,0.69442,87138.0,87112.0,0.01147947]
[1765992289931,0.69442,87138.0,87116.0,0.01147894]
[1765992290136,0.01832,87141.0,87110.0,0.01832]
[1765992290298,0.01832,87141.0,87125.0,0.24991273]
[1765992290686,0.0907,87149.0,87127.0,0.02035749]
[1765992290687,1.0,87148.0,87127.0,0.02035749]
[1765992290901,0.01832,87149.0,87130.0,0.00888]
[1765992291115,0.00161,87148.0,87130.0,0.00888]
[1765992291428,0.00161,87148.0,87130.0,0.0114771]
[1765992291634,0.00161,87148.0,87126.0,0.01147763]
[1765992291987,0.00161,87148.0,87124.0,0.01147789]
[1765992292205,0.00161,87148.0,87126.0,0.24103008]
[1765992292438,0.00161,87148.0,87126.0,0.01147763]
[1765992292644,0.00161,87148.0,87125.0,0.24991296]
[1765992292645,0.00161,87148.0,87127.0,0.01832]
[1765992292988,0.00161,87148.0,87130.0,0.0114771]
[1765992293371,0.00161,87148.0,87128.0,0.24102291]
[1765992293573,0.00161,87148.0,87129.0,0.01147723]
[1765992293789,0.00161,87148.0,87128.0,0.02035736]
[1765992294001,0.00161,87148.0,87128.0,0.00888]
[1765992294133,0.00161,87148.0,87130.0,0.0114771]
[1765992294328,0.00161,87148.0,87129.0,0.00888]
[1765992294532,0.47879,87158.0,87127.0,0.02979749]
[1765992294533,0.47879,87166.0,87137.0,0.00888]
[1765992294735,1.0,87166.0,87152.0,0.0114742]
[1765992294997,0.0002,87167.0,87161.0,0.01147302]
[1765992295200,1.0,87176.0,87161.0,0.01147302]
[1765992295410,1.0,87176.0,87158.0,0.02035341]
[1765992295552,1.0,87176.0,87156.0,0.01832]
[1765992295757,0.47879,87176.0,87156.0,0.01832]
[1765992295958,1.0,87176.0,87156.0,0.01832]
[1765992296156,1.0,87176.0,87156.0,0.02979367]
[1765992296557,1.0,87176.0,87157.0,0.00768]
[1765992296967,1.0,87176.0,87157.0,0.01915354]
[1765992297175,1.0,87176.0,87157.0,0.00768]
[1765992297373,1.0,87176.0,87161.0,0.002]
[1765992297989,1.0,87176.0,87156.0,0.02979367]
[1765992298525,0.00255921,87177.0,87163.0,0.00768]
[1765992298880,0.00255921,87177.0,87158.0,0.02991498]
[1765992298881,0.00255921,87177.0,87158.0,0.01844157]
[1765992300093,0.00255921,87177.0,87165.0,0.01147249]
[1765992300286,1.19153,87186.0,87160.0,0.00768]
[1765992300287,0.47879,87196.0,87170.0,0.01147183]
[1765992300502,0.69442,87197.0,87160.0,0.70184172]
[1765992300503,0.69442,87197.0,87175.0,0.00512]
[1765992300668,0.69442,87197.0,87176.0,0.01147104]
[1765992301028,1.0,87188.0,87174.0,0.01832]
[1765992301182,1.0,87188.0,87163.0,0.002]
[1765992301183,1.17321,87185.0,87163.0,0.002]
[1765992301411,1.0,87184.0,87163.0,0.002]
[1765992301609,1.0,87184.0,87163.0,0.01147275]
[1765992301813,1.0,87184.0,87176.0,0.002]
[1765992302020,0.00161,87185.0,87176.0,0.002]
[1765992302223,0.0002,87189.0,87176.0,0.00161287]
[1765992302633,0.0907,87195.0,87176.0,0.00492287]
[1765992302857,0.0907,87195.0,87176.0,0.00161287]
[1765992303071,0.01828,87198.0,87176.0,0.00161287]
[1765992303072,0.69442,87186.0,87176.0,0.00161287]
[1765992303275,1.17321,87184.0,87158.0,0.02175157]
[1765992303494,1.17321,87184.0,87162.0,0.01828]
[1765992303632,1.17321,87183.0,87162.0,0.01989287]
[1765992303830,0.24084385,87194.0,87165.0,0.00331]
[1765992303831,1.0,87192.0,87165.0,0.00331]
[1765992304031,0.47879,87191.0,87166.0,0.00331]
[1765992304253,1.0,87190.0,87166.0,0.00492287]
[1765992304455,1.0,87190.0,87169.0,0.01147196]
[1765992304663,1.0,87193.0,87170.0,0.01147183]
[1765992304882,1.0,87193.0,87170.0,0.00492287]
[1765992305290,1.0,87192.0,87170.0,0.00492287]
[1765992305997,0.47879,87192.0,87170.0,0.00161287]
[1765992306300,1.69442,87189.0,87170.0,0.00161287]
[1765992306544,1.0,87188.0,87170.0,0.00161287]
[1765992306722,0.70184172,87190.0,87170.0,0.00161287]
[1765992306723,1.69442,87186.0,87170.0,0.00161287]
[1765992306932,1.0,87183.0,87170.0,0.00161287]
[1765992307399,0.70184172,87180.0,87170.0,0.00161287]
[1765992307580,0.47879,87175.0,87143.0,0.00331]
[1765992307876,0.47879,87175.0,87135.0,0.01147644]
[1765992307877,1.0,87159.0,87135.0,0.00331]
[1765992308075,1.0,87159.0,87141.0,0.00161287]
[1765992308282,0.70184172,87151.0,87141.0,0.00161287]
[1765992308502,0.70184172,87151.0,87127.0,0.01828]
[1765992308503,0.47879,87147.0,87127.0,0.01828]
[1765992308760,0.47879,87146.0,87127.0,0.01828]
[1765992308951,0.69442,87145.0,87123.0,0.01844157]
[1765992309096,1.0,87144.0,87123.0,0.01844157]
[1765992309432,1.0,87144.0,87124.0,0.2410355]
[1765992309721,1.0,87144.0,87123.0,0.01844157]
[1765992309916,1.0,87144.0,87124.0,0.01147789]
[1765992310175,1.0,87144.0,87122.0,0.01828]
[1765992310393,0.69442,87145.0,87108.0,0.24107958]
[1765992310394,1.0,87138.0,87108.0,0.24107958]
[1765992310611,1.0,87138.0,87107.0,0.24804359]
[1765992310612,0.70408,87138.0,87112.0,0.01828]
[1765992310857,1.0,87139.0,87112.0,0.01828]
[1765992310858,1.0,87134.0,87112.0,0.01828]
[1765992311080,1.20553,87134.0,87112.0,0.01828]
[1765992311287,1.20553,87134.0,87111.0,0.00161]
[1765992311288,0.70408,87128.0,87107.0,0.01844157]
[1765992311491,0.70184172,87130.0,87107.0,0.01828]
[1765992311492,0.70408,87127.0,87107.0,0.01828]
[1765992311641,1.0,87129.0,87107.0,0.01828]
[1765992311809,0.50145,87126.0,87107.0,0.01828]
[1765992312006,0.50145,87122.0,87107.0,0.01828]
[1765992312213,0.0907,87135.0,87111.0,0.00161]
[1765992312415,0.0907,87135.0,87113.0,0.01147934]
[1765992312416,1.0,87134.0,87113.0,0.01147934]
[1765992312637,1.0,87134.0,87112.0,0.00161]
[1765992312638,0.001,87128.0,87112.0,0.00161]
[1765992312840,0.00161,87134.0,87112.0,0.00161]
[1765992313055,0.00161,87128.0,87112.0,0.00161]
[1765992313262,0.00161,87128.0,87109.0,0.02992144]
[1765992313440,0.00161,87128.0,87110.0,0.01308973]
[1765992313646,0.00161,87128.0,87113.0,0.00161]
[1765992314120,0.00161,87128.0,87116.0,0.01147894]
[1765992314282,0.00161,87128.0,87115.0,0.24105895]
[1765992314495,0.00161,87128.0,87116.0,0.01147894]
[1765992314713,0.0907,87137.0,87116.0,0.01147894]
[1765992315022,0.0907,87137.0,87115.0,0.22958015]
[1765992315023,1.0,87136.0,87115.0,0.01308907]
[1765992315286,1.0,87136.0,87118.0,0.24105178]
[1765992315493,1.0,87136.0,87119.0,0.01147855]
[1765992315708,1.0,87136.0,87121.0,0.01147828]
[1765992315925,1.0,87136.0,87119.0,0.01147855]
[1765992316276,1.0,87136.0,87118.0,0.24266185]
[1765992316277,1.0,87136.0,87118.0,0.00161]
[1765992316495,1.0,87136.0,87123.0,0.01147802]
[1765992316699,1.0,87136.0,87118.0,0.23118319]
[1765992316863,1.0,87136.0,87116.0,0.01247894]
[1765992316864,1.90713009,87130.0,87116.0,0.001]
[1765992317059,1.0,87128.0,87116.0,0.001]
[1765992317299,1.0,87127.0,87110.0,0.01828]
[1765992317677,0.50145,87127.0,87119.0,0.001]
[1765992318059,1.20553,87127.0,87110.0,0.01828]
[1765992318211,1.0,87136.0,87110.0,0.01828]
[1765992318415,1.0,87134.0,87110.0,0.01828]
[1765992318596,1.0,87132.0,87110.0,0.01828]
[1765992318972,1.0,87128.0,87110.0,0.01828]
[1765992319931,0.50145,87134.0,87110.0,0.01828]
[1765992320159,1.20553,87133.0,87110.0,0.01828]
[1765992320371,1.50145,87130.0,87110.0,0.01828]
[1765992320574,1.0,87129.0,87110.0,0.01828]
[1765992320811,1.0,87129.0,87112.0,0.01147947]
[1765992321129,1.0,87129.0,87112.0,0.2410665]
[1765992321330,1.0,87136.0,87115.0,0.01147907]
[1765992321450,1.0,87136.0,87116.0,0.01147894]
[1765992321645,1.0,87136.0,87118.0,0.01147868]
[1765992321853,1.0,87136.0,87117.0,0.01147881]
[1765992322091,1.0,87136.0,87113.0,0.01308934]
[1765992322289,0.00161,87137.0,87113.0,0.24267617]
[1765992322290,0.50145,87133.0,87113.0,0.24267617]
[1765992322501,0.50145,87133.0,87115.0,0.01147907]
[1765992322703,0.00161,87137.0,87126.0,0.00161]
[1765992322916,0.00161,87137.0,87119.0,0.01147855]
[1765992323055,0.00161,87137.0,87124.0,0.01147789]
[1765992323266,0.00161,87137.0,87115.0,0.00492]
[1765992323483,0.70408,87130.0,87113.0,0.01828]
[1765992323681,0.00161,87137.0,87109.0,0.0907]
[1765992323682,0.50145,87129.0,87109.0,0.0907]
[1765992323964,0.70408,87122.0,87104.0,0.01828]
[1765992324160,0.70408,87122.0,87106.0,0.22960283]
[1765992324367,0.01828,87134.0,87112.0,0.01147947]
[1765992324678,0.00161,87137.0,87120.0,0.01147842]
[1765992324878,0.00161,87137.0,87122.0,0.00261]
[1765992325103,0.00161,87137.0,87127.0,0.24102504]
[1765992325427,1.02933646,87160.0,87127.0,0.24102504]
[1765992325428,1.0,87144.0,87129.0,0.01147723]
[1765992325575,1.0,87144.0,87129.0,0.00161287]
[1765992327044,0.51973,87149.0,87129.0,0.00161287]
[1765992327045,0.01828,87149.0,87132.0,0.001]
[1765992327384,0.0907,87152.0,87133.0,0.0124767]
[1765992327591,0.0907,87152.0,87134.0,0.01147657]
[1765992327731,0.01828,87154.0,87136.0,0.01147631]
[1765992327934,0.01828,87154.0,87136.0,0.00161287]
[1765992328472,0.01828,87154.0,87136.0,0.01308918]
[1765992328675,0.01828,87154.0,87136.0,0.24261485]
[1765992328912,0.01147144,87173.0,87136.0,0.24261485]
[1765992328913,1.0,87178.0,87147.0,0.01147486]
[1765992329119,1.0,87170.0,87147.0,0.00161287]
[1765992329339,2.20553,87172.0,87147.0,0.00161287]
[1765992329545,1.0,87169.0,87147.0,0.00161287]
[1765992329898,0.50145,87177.0,87149.0,0.22949201]
[1765992330120,0.996,87173.0,87149.0,0.01308747]
[1765992330415,0.996,87173.0,87151.0,0.01147433]
[1765992330416,0.50145,87173.0,87151.0,0.01147433]
[1765992330747,0.001,87172.0,87152.0,0.0114742]
[1765992330884,0.50145,87173.0,87152.0,0.01308707]
[1765992331080,0.50145,87173.0,87152.0,0.00161287]
[1765992331340,0.001,87173.0,87152.0,0.01408707]
[1765992331501,1.0,87174.0,87153.0,0.001]
[1765992331836,0.001,87172.0,87153.0,0.00261287]
[1765992332039,0.001,87172.0,87154.0,0.001]
[1765992332243,0.001,87172.0,87158.0,0.001]
[1765992332563,0.0907,87186.0,87163.0,0.22945468]
[1765992332784,0.05001839,87188.0,87167.0,0.001]
[1765992332981,0.0907,87186.0,87167.0,0.00261287]
[1765992333123,0.0907,87184.0,87167.0,0.00261287]
[1765992333323,0.001,87173.0,87167.0,0.00261287]
[1765992333786,0.0907,87184.0,87167.0,0.00261287]
[1765992334207,0.0907,87185.0,87167.0,0.00161287]
[1765992334578,0.0907,87185.0,87167.0,0.00261287]
[1765992334957,0.0907,87185.0,87167.0,0.00161287]
[1765992335305,1.0,87192.0,87173.0,0.001]
[1765992335444,1.0,87192.0,87173.0,0.00261287]
[1765992335648,1.0,87192.0,87173.0,0.01408431]
[1765992335941,1.0,87192.0,87173.0,0.00261287]
[1765992336155,1.02933646,87190.0,87173.0,0.00161287]
[1765992336353,1.02933646,87190.0,87158.0,0.01247341]
[1765992336354,1.20553,87188.0,87158.0,0.01247341]
[1765992336559,1.0,87189.0,87160.0,0.22946169]
[1765992336678,1.0,87189.0,87159.0,0.02975328]
[1765992336876,1.0,87188.0,87171.0,0.0114717]
[1765992337280,1.0,87189.0,87175.0,0.01147117]
[1765992337520,1.0,87192.0,87174.0,0.01147131]
[1765992337911,1.50145,87192.0,87175.0,0.24089283]
[1765992338118,1.0,87192.0,87175.0,0.24089399]
[1765992338315,0.0907,87196.0,87175.0,0.01147117]
[1765992338670,1.0,87195.0,87175.0,0.001]
[1765992338845,1.20553,87194.0,87175.0,0.001]
[1765992339049,1.20553,87192.0,87175.0,0.001]
[1765992339307,1.0,87191.0,87175.0,0.001]
[1765992339487,0.01828,87202.0,87175.0,0.001]
[1765992339488,0.50145,87189.0,87175.0,0.001]
[1765992339829,0.50145,87187.0,87169.0,0.01828]
[1765992340051,0.50306,87187.0,87175.0,0.001]
[1765992340250,0.50306,87187.0,87168.0,0.01844157]
[1765992340449,0.50306,87187.0,87168.0,0.03672157]
[1765992340861,1.0,87185.0,87168.0,0.01828]
[1765992341068,0.50636,87181.0,87168.0,0.01828]
[1765992341280,0.00161,87185.0,87173.0,0.01147144]
[1765992341445,1.0,87193.0,87174.0,0.01147131]
[1765992341645,1.0,87193.0,87174.0,0.24251032]
[1765992341866,1.0,87193.0,87174.0,0.00261287]
[1765992342654,1.0,87193.0,87175.0,0.01247117]
[1765992342986,1.0,87193.0,87175.0,0.00261287]
[1765992343136,1.0,87193.0,87175.0,0.01408404]
[1765992343335,1.0,87193.0,87175.0,0.00261287]
[1765992343743,0.6861,87189.0,87175.0,0.00161287]
[1765992344059,0.50636,87188.0,87175.0,0.00261287]
[1765992344399,0.6861,87189.0,87175.0,0.00261287]
[1765992344600,0.47802477,87189.0,87175.0,0.00261287]
[1765992344800,0.98438477,87189.0,87175.0,0.00261287]
[1765992345373,1.0,87186.0,87175.0,0.00261287]
[1765992345604,0.50636,87185.0,87175.0,0.00261287]
[1765992345842,0.50492,87185.0,87175.0,0.00261287]
[1765992346250,0.50492,87185.0,87175.0,0.00161287]
[1765992346705,0.0907,87197.0,87175.0,0.00161287]
[1765992346882,0.6861,87195.0,87175.0,0.00161287]
[1765992347085,0.6861,87191.0,87175.0,0.00161287]
[1765992347293,1.0,87190.0,87175.0,0.00161287]
[1765992347712,1.0,87188.0,87175.0,0.00161287]
[1765992348154,1.0,87185.0,87156.0,0.20907]
[1765992348358,1.19246,87183.0,87165.0,0.01828]
[1765992348482,0.50636,87184.0,87165.0,0.01989287]
[1765992348807,1.0,87181.0,87165.0,0.00161287]
[1765992348991,0.03672157,87189.0,87155.0,0.20907]
[1765992348992,0.50636,87174.0,87155.0,0.20907]
[1765992349194,0.50636,87168.0,87145.0,0.20907]
[1765992349451,0.50636,87167.0,87146.0,0.10898]
[1765992349578,1.19246,87165.0,87147.0,0.01828]
[1765992349777,0.6861,87163.0,87147.0,0.01989287]
[1765992350248,0.6861,87163.0,87155.0,0.001]
[1765992350623,0.6861,87163.0,87147.0,0.00161287]
[1765992351032,0.50636,87158.0,87147.0,0.00161287]
[1765992351238,1.0,87165.0,87147.0,0.00161287]
[1765992351409,0.6861,87159.0,87147.0,0.00161287]
[1765992351623,0.50636,87156.0,87147.0,0.00161287]
[1765992352418,0.01828,87167.0,87147.0,0.00161287]
[1765992352419,1.0,87164.0,87147.0,0.00161287]
[1765992352621,0.05001839,87166.0,87147.0,0.00161287]
[1765992352622,0.50636,87162.0,87147.0,0.00161287]
[1765992353240,0.50636,87161.0,87147.0,0.00161287]
[1765992353844,0.01828,87167.0,87147.0,0.01308773]
[1765992354080,0.01828,87167.0,87148.0,0.21007]
[1765992354081,1.0,87166.0,87148.0,0.21007]
[1765992354298,0.6861,87173.0,87152.0,0.21007]
[1765992354299,1.0,87169.0,87152.0,0.21007]
[1765992354460,1.0,87184.0,87160.0,0.21382]
[1765992354821,1.0,87183.0,87160.0,0.21543287]
[1765992354971,1.50636,87183.0,87161.0,0.21007]
[1765992355178,1.0,87182.0,87161.0,0.21168287]
[1765992355760,0.01828,87185.0,87162.0,0.00375]
[1765992355999,0.6861,87182.0,87162.0,0.00161287]
[1765992356242,1.19246,87178.0,87162.0,0.00161287]
[1765992356599,1.0,87184.0,87162.0,0.00161287]
[1765992356945,0.50636,87182.0,87162.0,0.00161287]
[1765992357148,0.01828,87185.0,87162.0,0.00161287]
[1765992357149,1.19246,87180.0,87162.0,0.00161287]
[1765992357436,0.50636,87179.0,87162.0,0.00161287]
[1765992358013,1.0,87184.0,87164.0,0.00375]
[1765992358220,0.50636,87182.0,87164.0,0.00161287]
[1765992358427,1.0,87179.0,87164.0,0.00161287]
[1765992358625,1.0,87177.0,87164.0,0.00161287]
[1765992358852,0.0907,87187.0,87165.0,0.21382]
[1765992359054,1.0,87184.0,87167.0,0.21382]
[1765992359255,1.0,87184.0,87167.0,0.21543287]
[1765992359914,1.0,87184.0,87167.0,0.21168287]
[1765992360096,0.50636,87182.0,87167.0,0.00161287]
[1765992360308,0.50636,87179.0,87167.0,0.00161287]
[1765992361176,0.6861,87172.0,87144.0,0.0907]
[1765992361377,1.0,87166.0,87146.0,0.22949981]
[1765992361594,1.0,87166.0,87151.0,0.00375]
[1765992361756,1.0,87177.0,87152.0,0.21007]
[1765992361961,0.0907,87172.0,87152.0,0.00161287]
[1765992362160,1.0,87168.0,87152.0,0.00161287]
[1765992362360,0.01147144,87173.0,87152.0,0.00161287]
[1765992362361,1.0,87166.0,87152.0,0.00161287]
[1765992362680,1.0,87174.0,87154.0,0.00375]
[1765992363012,1.0,87179.0,87163.0,0.01844157]
[1765992363181,0.0907,87180.0,87163.0,0.02380444]
[1765992363549,0.01828,87183.0,87163.0,0.02005444]
[1765992363745,0.50636,87179.0,87163.0,0.02005444]
[1765992363955,1.0,87180.0,87163.0,0.00161287]
[1765992364178,0.6861,87179.0,87149.0,0.02219157]
[1765992364377,0.50636,87173.0,87163.0,0.001]
[1765992364576,0.50636,87171.0,87152.0,0.01989287]
[1765992365489,0.50636,87168.0,87133.0,0.00375]
[1765992365683,0.50636,87159.0,87134.0,0.03672157]
[1765992365816,1.19246,87158.0,87134.0,0.03833444]
[1765992366239,0.50636,87157.0,87134.0,0.03833444]
[1765992366458,1.19246,87157.0,87134.0,0.03833444]
[1765992366691,0.6861,87157.0,87136.0,0.01147631]
[1765992366877,0.01828,87160.0,87136.0,0.01147631]
[1765992366878,1.19246,87156.0,87136.0,0.00161287]
[1765992368888,0.6861,87156.0,87136.0,0.00161287]
[1765992369343,0.01828,87160.0,87136.0,0.00161287]
[1765992369344,1.02933646,87150.0,87136.0,0.00161287]
[1765992369550,1.02933646,87150.0,87113.0,0.00375]
[1765992369551,0.01147499,87146.0,87113.0,0.00375]
[1765992369709,0.0907,87148.0,87111.0,0.01844157]
[1765992369710,1.0,87143.0,87111.0,0.01844157]
[1765992369886,0.678,87137.0,87111.0,0.00161287]
[1765992370243,1.0,87135.0,87111.0,0.00161287]
[1765992370460,1.18815,87132.0,87111.0,0.00161287]
[1765992370658,0.50749,87129.0,87111.0,0.00161287]
[1765992370866,1.02933646,87160.0,87128.0,0.00161287]
[1765992371013,0.0907,87152.0,87129.0,0.00375]
[1765992371214,0.0907,87152.0,87130.0,0.00175]
[1765992371419,1.0,87149.0,87130.0,0.00336287]
[1765992372027,1.0,87149.0,87130.0,0.00161287]
[1765992373256,1.0,87148.0,87130.0,0.00161287]
[1765992374202,1.21524,87148.0,87130.0,0.00161287]
[1765992374359,0.50749,87144.0,87130.0,0.00161287]
[1765992374697,0.50749,87143.0,87130.0,0.00161287]
[1765992375777,0.50749,87150.0,87130.0,0.00161287]
[1765992376086,1.0,87145.0,87130.0,0.00161287]
[1765992376235,0.0907,87151.0,87130.0,0.00161287]
[1765992376436,0.01828,87150.0,87131.0,0.00175]
[1765992376638,0.01828,87150.0,87131.0,0.00336287]
[1765992376903,1.0,87149.0,87131.0,0.00161287]
[1765992377104,1.0,87147.0,87131.0,0.00161287]
[1765992377874,0.01828,87150.0,87132.0,0.01322683]
[1765992378024,0.01828,87150.0,87132.0,0.0148397]
[1765992378246,0.01828,87150.0,87132.0,0.00336287]
[1765992378662,0.01828,87150.0,87132.0,0.0148397]
[1765992378866,0.70775,87156.0,87136.0,0.01147631]
[1765992379064,0.70775,87156.0,87136.0,0.00161287]
[1765992379652,0.50749,87155.0,87136.0,0.00161287]
[1765992380426,0.72603,87157.0,87136.0,0.00161287]
[1765992380633,1.0,87161.0,87141.0,0.24098851]
[1765992380839,1.0,87158.0,87142.0,0.01552062]
[1765992381017,1.0,87158.0,87144.0,0.24097927]
[1765992381256,1.0,87164.0,87145.0,0.02524527]
[1765992381466,0.0907,87166.0,87147.0,0.01322486]
[1765992381672,0.0907,87166.0,87147.0,0.00336287]
[1765992382030,0.01828,87167.0,87147.0,0.00336287]
[1765992383488,0.01828,87167.0,87147.0,0.00161287]
[1765992383996,0.01828,87167.0,87147.0,0.00261287]
[1765992384271,2.21524,87170.0,87147.0,0.00261287]
[1765992384472,0.50749,87167.0,87147.0,0.00261287]
[1765992384936,0.0907,87173.0,87152.0,0.00175]
[1765992385163,0.0907,87173.0,87153.0,0.00175]
[1765992385164,0.10898,87173.0,87153.0,0.00175]